bitfinex/quotes_BTCUSD_20251120
["timestamp","ask_amount","ask_price","bid_price","bid_amount"]
[1763647724572,0.03128158,90970.0,90960.0,0.71274584]
[1763647725097,0.0038,90969.0,90956.0,0.01099432]
[1763647725282,0.0038,90969.0,90960.0,0.71274584]
[1763647725412,0.00181149,90971.0,90965.0,0.01099323]
[1763647725623,0.0038,90968.0,90961.0,0.01099372]
[1763647725851,0.0038,90968.0,90962.0,0.0109936]
[1763647726053,0.0038,90968.0,90960.0,0.71274584]
[1763647726229,0.00181149,90971.0,90968.0,0.01099287]
[1763647726433,0.0038,90970.0,90964.0,0.01099336]
[1763647726633,0.0038,90970.0,90967.0,0.23085151]
[1763647727074,0.0038,90970.0,90966.0,0.23085524]
[1763647727323,0.0038,90970.0,90967.0,0.23085212]
[1763647727506,0.0038,90970.0,90968.0,0.2198572]
[1763647728002,0.0038,90970.0,90965.0,0.01099323]
[1763647728411,0.0038,90970.0,90968.0,0.21985599]
[1763647728824,0.00181149,90971.0,90970.0,0.21985269]
[1763647729322,0.00181149,90971.0,90970.0,0.00070692]
[1763647731191,2.0,91003.0,90985.0,0.01099082]
[1763647731390,2.0,91001.0,90993.0,0.71274584]
[1763647731596,0.01723925,91008.0,90993.0,0.71274584]
[1763647731597,0.0038,91000.0,90993.0,0.71274584]
[1763647731795,0.01098671,91019.0,90994.0,0.23078444]
[1763647731796,0.02747071,91006.0,90994.0,0.23078444]
[1763647732000,0.05201,91021.0,90994.0,0.23078444]
[1763647732001,0.02392724,91005.0,90995.0,0.01098961]
[1763647732370,0.0042196,91005.0,90995.0,0.71274584]
[1763647732888,0.01098937,90997.0,90967.0,0.01099299]
[1763647733091,0.01098937,90997.0,90980.0,0.71274584]
[1763647733092,0.21979229,90995.0,90980.0,0.71274584]
[1763647733297,0.03846406,90994.0,90980.0,0.71274584]
[1763647733499,0.24727106,90994.0,90980.0,0.71274584]
[1763647733701,0.21979394,90995.0,90980.0,0.71274584]
[1763647733900,0.02747433,90994.0,90980.0,0.71274584]
[1763647734139,0.03846406,90994.0,90980.0,0.71274584]
[1763647734342,0.21980201,90991.0,90980.0,0.71274584]
[1763647734557,0.03123554,90990.0,90980.0,0.71274584]
[1763647735631,0.02747584,90989.0,90980.0,0.71274584]
[1763647736245,0.01099058,90987.0,90970.0,0.71274584]
[1763647736543,0.00376,90990.0,90970.0,0.71274584]
[1763647736544,0.02747675,90986.0,90970.0,0.71274584]
[1763647736841,0.03123554,90990.0,90980.0,0.001]
[1763647737055,0.03123554,90990.0,90980.0,0.71374584]
[1763647737348,0.03123554,90990.0,90980.0,0.71274584]
[1763647737696,0.00376,90990.0,90980.0,0.71274584]
[1763647737898,0.02747282,90999.0,90980.0,0.71274584]
[1763647738097,0.02747282,90999.0,90970.0,0.01199263]
[1763647738098,0.21996876,90922.0,90918.0,0.09784661]
[1763647738321,0.21996876,90922.0,90892.0,0.13688132]
[1763647738322,0.22001852,90902.0,90900.0,0.09784661]
[1763647738528,0.01100001,90909.0,90876.0,0.05167]
[1763647738529,0.01100255,90888.0,90881.0,0.02705]
[1763647738755,0.02008667,90887.0,90881.0,0.02705]
[1763647738964,0.02008667,90886.0,90881.0,0.02705]
[1763647739323,0.03011134,90885.0,90881.0,0.02717644]
[1763647739534,0.04491437,90884.0,90881.0,0.02717644]
[1763647739743,0.0110034,90881.0,90860.0,0.05167]
[1763647739916,0.03011134,90880.0,90867.0,0.02717633]
[1763647740102,0.22008739,90873.0,90867.0,0.02717633]
[1763647740300,0.03011134,90872.0,90868.0,0.05167]
[1763647740615,0.22009464,90870.0,90868.0,0.05167]
[1763647740798,0.03391134,90869.0,90868.0,0.05167]
[1763647740985,0.03391134,90869.0,90867.0,0.02717633]
[1763647740986,0.22009948,90868.0,90867.0,0.00012633]
[1763647741190,0.22009948,90868.0,90792.0,0.02705]
[1763647741191,0.00999999,90810.0,90792.0,0.01599008]
[1763647741391,0.01382467,90809.0,90792.0,0.01599008]
[1763647741705,0.01382467,90808.0,90792.0,0.01599008]
[1763647741911,0.01002467,90807.0,90792.0,0.01599008]
[1763647742138,0.0038,90808.0,90792.0,0.01599008]
[1763647742139,0.00999999,90800.0,90792.0,0.01599008]
[1763647742346,0.01002467,90799.0,90790.0,0.71274584]
[1763647742639,4.67e-06,90798.0,90796.0,0.22027231]
[1763647742840,0.001,90809.0,90797.0,0.00022971]
[1763647743042,0.00012544,90810.0,90808.0,0.22024491]
[1763647743249,0.00012544,90810.0,90809.0,0.05168243]
[1763647743445,0.01379999,90830.0,90814.0,0.01101151]
[1763647743446,0.0038,90830.0,90814.0,0.01101151]
[1763647743647,0.0262,90871.0,90814.0,0.01101151]
[1763647743648,0.0262,90871.0,90833.0,0.01100921]
[1763647743871,0.03824796,90897.0,90850.0,0.71274584]
[1763647743872,0.03366525,90870.0,90850.0,0.71274584]
[1763647744031,0.02366526,90869.0,90860.0,0.71274584]
[1763647744237,0.019852,90868.0,90860.0,0.71274584]
[1763647744454,0.01985183,90867.0,90861.0,0.02705]
[1763647744653,0.02558,90894.0,90861.0,0.02705]
[1763647744654,0.00999999,90890.0,90872.0,0.01100448]
[1763647744989,0.00999999,90890.0,90865.0,0.01100533]
[1763647744990,0.01985547,90889.0,90886.0,0.01100279]
[1763647745331,0.00012649,90890.0,90889.0,0.02735]
[1763647745698,0.00012649,90890.0,90889.0,0.07881]
[1763647745867,0.00012649,90890.0,90875.0,0.05146]
[1763647745868,0.00212649,90890.0,90875.0,0.05146]
[1763647746067,0.00212649,90890.0,90861.0,0.03805582]
[1763647746068,0.00012649,90890.0,90867.0,0.01100509]
[1763647746289,0.01012648,90890.0,90862.0,0.05146]
[1763647746492,0.01012648,90890.0,90874.0,0.01631339]
[1763647746760,0.0038,90889.0,90879.0,0.23107613]
[1763647747032,0.0038,90888.0,90885.0,0.01100291]
[1763647747244,0.0038,90888.0,90881.0,0.0110034]
[1763647747450,0.0038,90888.0,90879.0,0.05146]
[1763647747653,0.0038,90888.0,90870.0,0.01100473]
[1763647747654,0.00012649,90890.0,90887.0,0.22005347]
[1763647747898,0.00012649,90890.0,90889.0,0.24739863]
[1763647748244,0.00012649,90890.0,90889.0,0.29885863]
[1763647748902,0.00012649,90890.0,90889.0,0.07881]
[1763647749247,0.00112649,90890.0,90889.0,0.29885863]
[1763647749562,0.00012649,90890.0,90889.0,0.29885863]
[1763647749965,0.00012649,90890.0,90889.0,0.32064861]
[1763647750136,0.0038,90911.0,90901.0,0.01100097]
[1763647750332,0.0038,90911.0,90901.0,0.00024973]
[1763647750533,0.00999999,90910.0,90901.0,0.00024973]
[1763647750790,0.00999999,90910.0,90901.0,0.05170973]
[1763647750989,0.00999999,90910.0,90893.0,0.10249786]
[1763647751196,0.0038,90909.0,90897.0,0.01100146]
[1763647751400,0.0038,90909.0,90903.0,0.01100073]
[1763647751601,0.0038,90909.0,90906.0,0.01100037]
[1763647751765,0.00999999,90920.0,90914.0,0.0109994]
[1763647751969,0.01012639,90920.0,90915.0,0.01099928]
[1763647752217,0.01012639,90920.0,90910.0,0.59297665]
[1763647752373,0.01012639,90920.0,90917.0,0.01099904]
[1763647752573,0.01012639,90920.0,90910.0,0.58197676]
[1763647752574,0.0001264,90920.0,90910.0,0.58197676]
[1763647752781,0.0001264,90920.0,90850.0,0.20999999]
[1763647752782,0.01012639,90920.0,90897.0,0.01100146]
[1763647752982,0.01012639,90920.0,90903.0,0.23101547]
[1763647753361,0.01112639,90920.0,90904.0,0.06246061]
[1763647753563,0.01112639,90920.0,90904.0,0.05146]
[1763647753564,0.01012639,90920.0,90904.0,0.05146]
[1763647753729,0.01012639,90920.0,90889.0,0.02735]
[1763647753730,0.01100327,90882.0,90864.0,0.05146]
[1763647753943,0.01100255,90888.0,90852.0,0.05146]
[1763647753944,0.00999999,90870.0,90852.0,0.05146]
[1763647754146,0.22010917,90864.0,90852.0,0.05146]
[1763647754345,0.00999999,90850.0,90839.0,0.02705]
[1763647754551,0.00999999,90850.0,90826.0,0.05146]
[1763647754552,0.01100872,90837.0,90826.0,0.05146]
[1763647754714,0.01100812,90842.0,90826.0,0.05146]
[1763647754715,0.00989904,90836.0,90826.0,0.05146]
[1763647754919,0.00989904,90835.0,90826.0,0.05187898]
[1763647755232,0.0110063,90857.0,90826.0,0.05187898]
[1763647755233,0.00989904,90834.0,90827.0,0.22019655]
[1763647755436,0.00999999,90880.0,90826.0,0.05187898]
[1763647755437,0.00999999,90870.0,90855.0,0.01100654]
[1763647755636,0.00999999,90870.0,90844.0,0.01100788]
[1763647755637,0.03348228,90869.0,90850.0,0.58197676]
[1763647755868,0.03348228,90869.0,90830.0,0.0038]
[1763647755869,0.00989409,90868.0,90845.0,0.07851]
[1763647756172,0.00989409,90867.0,90853.0,0.22013349]
[1763647756348,0.00989409,90866.0,90851.0,0.01100703]
[1763647756519,0.00989409,90865.0,90851.0,0.00041898]
[1763647756720,0.00999999,90860.0,90851.0,0.00041898]
[1763647756964,0.00989409,90859.0,90851.0,0.00041898]
[1763647757184,0.0058,90869.0,90855.0,0.01100654]
[1763647757185,0.00989409,90858.0,90855.0,0.01100654]
[1763647757401,0.0058,90869.0,90851.0,0.06288601]
[1763647757402,0.22013688,90853.0,90851.0,0.00041898]
[1763647757661,0.02967607,90852.0,90851.0,0.00041898]
[1763647758267,0.00989409,90852.0,90851.0,0.05187898]
[1763647758470,0.01369409,90852.0,90851.0,0.05187898]
[1763647758684,0.00989409,90852.0,90851.0,0.27201964]
[1763647758912,0.00999999,90860.0,90851.0,0.05187898]
[1763647758913,0.0038,90857.0,90851.0,0.05187898]
[1763647759114,0.00988953,90856.0,90852.0,0.05146]
[1763647759458,0.00988953,90855.0,90852.0,0.05146]
[1763647759663,0.0038,90857.0,90852.0,0.05146]
[1763647759664,0.00988953,90854.0,90852.0,0.05146]
[1763647759812,0.02967174,90853.0,90852.0,0.05146]
[1763647760582,0.00988953,90853.0,90852.0,0.05146]
[1763647760846,0.02967545,90853.0,90852.0,0.05146]
[1763647762069,0.03067545,90853.0,90851.0,0.00041898]
[1763647762260,0.02967545,90852.0,90851.0,0.00041898]
[1763647762912,0.02969383,90852.0,90851.0,0.00041898]
[1763647763112,0.08024383,90852.0,90851.0,0.00041898]
[1763647763320,0.00999999,90830.0,90815.0,0.05146]
[1763647763625,0.03349383,90829.0,90827.0,0.22019785]
[1763647763845,0.02969383,90828.0,90827.0,0.22019785]
[1763647764191,0.03349383,90828.0,90827.0,0.00492672]
[1763647765145,0.02969383,90828.0,90827.0,0.00492672]
[1763647765763,0.08408383,90828.0,90827.0,0.00492672]
[1763647765966,0.05080688,90828.0,90827.0,0.00492672]
[1763647766167,0.22028615,90791.0,90766.0,0.02705]
[1763647766419,0.27939998,90791.0,90758.0,0.02705]
[1763647766568,0.37994998,90791.0,90758.0,0.02705]
[1763647767272,0.10624462,90791.0,90760.0,0.56926157]
[1763647767478,0.03395462,90791.0,90770.0,0.56926157]
[1763647767838,0.03395462,90791.0,90761.0,0.01125167]
[1763647767839,0.03395462,90791.0,90790.0,0.05166]
[1763647768173,0.03395462,90791.0,90790.0,0.0002]
[1763647768957,0.0301722,90791.0,90790.0,0.0002]
[1763647769371,0.0370122,90791.0,90790.0,0.0002]
[1763647769508,0.0350122,90791.0,90790.0,0.0002]
[1763647769908,0.2202953,90788.0,90781.0,9e-05]
[1763647770116,0.02975141,90787.0,90781.0,9e-05]
[1763647770321,0.02975141,90786.0,90781.0,9e-05]
[1763647770517,0.02975141,90785.0,90781.0,9e-05]
[1763647770717,0.02975141,90784.0,90781.0,9e-05]
[1763647770893,0.22754893,90791.0,90781.0,9e-05]
[1763647770894,0.02975141,90783.0,90781.0,9e-05]
[1763647771094,0.02975141,90782.0,90781.0,9e-05]
[1763647771504,0.03359141,90782.0,90781.0,0.04676]
[1763647771703,0.03359141,90782.0,90781.0,0.04699911]
[1763647771946,0.02975141,90782.0,90781.0,0.04699911]
[1763647772129,0.03359141,90782.0,90781.0,0.04676]
[1763647772362,0.03359141,90782.0,90781.0,9e-05]
[1763647773398,0.3016494,90782.0,90781.0,9e-05]
[1763647773749,0.00999999,90760.0,90749.0,0.02084]
[1763647773964,0.22035784,90762.0,90735.0,0.0110211]
[1763647773965,0.00999999,90750.0,90735.0,0.0110211]
[1763647774135,0.02975141,90749.0,90736.0,0.01102098]
[1763647774340,0.02975141,90748.0,90737.0,0.0002628]
[1763647774549,0.02975141,90747.0,90740.0,0.01102049]
[1763647774751,0.02975141,90746.0,90741.0,0.00026218]
[1763647774893,0.03359141,90745.0,90742.0,0.23142408]
[1763647775091,0.02975141,90744.0,90743.0,0.2204007]
[1763647775350,0.02975141,90744.0,90739.0,0.23143074]
[1763647775678,0.02975141,90743.0,90741.0,0.22040657]
[1763647775820,0.02975141,90742.0,90741.0,0.22040621]
[1763647776335,0.02975141,90742.0,90735.0,0.22042051]
[1763647776336,0.00999999,90780.0,90731.0,0.323]
[1763647776553,0.09599795,90810.0,90731.0,0.323]
[1763647776554,0.00999999,90760.0,90744.0,0.01102001]
[1763647776679,0.01373162,90759.0,90745.0,0.0475]
[1763647776883,0.01373162,90759.0,90714.0,0.44094186]
[1763647776884,0.00989162,90758.0,90740.0,0.81511921]
[1763647777089,0.00989162,90757.0,90741.0,0.00025886]
[1763647777289,0.00999999,90750.0,90736.0,0.0475]
[1763647777660,0.00384,90759.0,90731.0,0.00042027]
[1763647777661,0.00999999,90740.0,90731.0,0.00042027]
[1763647777814,0.01373162,90739.0,90732.0,0.0002625]
[1763647778132,0.01373162,90739.0,90731.0,0.04792027]
[1763647778133,0.00989162,90738.0,90731.0,0.00042027]
[1763647778341,0.00384,90739.0,90732.0,0.0475]
[1763647778537,0.0098875,90738.0,90731.0,0.00042027]
[1763647778838,0.00384,90739.0,90731.0,0.00042027]
[1763647778839,0.0098875,90737.0,90731.0,0.00042027]
[1763647779138,0.0098875,90736.0,90731.0,0.00042027]
[1763647779284,0.00384,90739.0,90731.0,0.00042027]
[1763647779285,0.0098875,90735.0,90731.0,0.00042027]
[1763647779485,0.0098875,90734.0,90731.0,0.00042027]
[1763647779780,0.0098875,90733.0,90731.0,0.00042027]
[1763647779986,0.00384,90739.0,90731.0,0.00042027]
[1763647779987,0.0098875,90732.0,90731.0,0.00042027]
[1763647780141,0.0098875,90732.0,90731.0,0.00142027]
[1763647780558,0.0098875,90732.0,90731.0,0.26935209]
[1763647780761,0.00999999,90750.0,90733.0,0.22042696]
[1763647780969,0.02829438,90784.0,90732.0,0.22042939]
[1763647780970,0.00999999,90770.0,90754.0,0.01101879]
[1763647781185,0.00384,90769.0,90755.0,0.00896]
[1763647781403,0.02754274,90768.0,90755.0,0.00896]
[1763647781602,0.01543385,90768.0,90755.0,0.00896]
[1763647781810,0.00384,90767.0,90757.0,0.01101843]
[1763647782130,0.00732874,90777.0,90770.0,0.01101685]
[1763647782342,0.00999999,90780.0,90763.0,0.0110177]
[1763647782343,0.03138031,90776.0,90763.0,0.0110177]
[1763647782501,0.03138031,90776.0,90768.0,0.01101709]
[1763647782708,0.02140458,90776.0,90769.0,0.01101697]
[1763647782978,0.02140458,90776.0,90761.0,0.01101794]
[1763647783091,0.00999999,90780.0,90769.0,0.03561]
[1763647783297,0.00384,90775.0,90769.0,0.00012649]
[1763647783932,0.02754092,90774.0,90769.0,0.00012649]
[1763647784353,0.00384,90773.0,90769.0,0.00012649]
[1763647784568,0.02754153,90772.0,90769.0,0.00012649]
[1763647785006,0.00384,90773.0,90771.0,0.22033362]
[1763647785483,0.00999999,90800.0,90777.0,0.011016]
[1763647785657,0.03137334,90799.0,90775.0,0.01101624]
[1763647785866,0.03137334,90799.0,90776.0,0.01101612]
[1763647786065,0.03137334,90799.0,90778.0,0.22031674]
[1763647786243,0.03137334,90799.0,90783.0,0.01101527]
[1763647786445,0.0110137,90796.0,90777.0,0.03177]
[1763647786668,0.00999999,90790.0,90772.0,0.22033046]
[1763647786867,0.00999999,90790.0,90770.0,0.01101685]
[1763647787069,0.00999999,90790.0,90769.0,0.01114346]
[1763647787336,0.00999999,90790.0,90770.0,0.01101685]
[1763647787515,0.00999999,90790.0,90772.0,0.01101661]
[1763647787684,0.00999999,90790.0,90770.0,0.23135366]
[1763647788098,0.02753637,90789.0,90775.0,0.00153634]
[1763647788333,0.02374771,90788.0,90775.0,0.00012544]
[1763647788568,0.03812494,90787.0,90775.0,0.00012544]
[1763647788733,0.01990771,90786.0,90775.0,0.00012544]
[1763647788935,0.03568368,90785.0,90775.0,0.00012544]
[1763647789215,0.00384,90788.0,90781.0,0.22030928]
[1763647789216,0.02966966,90784.0,90781.0,0.22030928]
[1763647789414,0.01101552,90781.0,90775.0,0.00012544]
[1763647789619,0.04744681,90780.0,90775.0,0.00012544]
[1763647789744,0.03092347,90779.0,90775.0,0.00012544]
[1763647789947,0.01990771,90778.0,90775.0,0.00012544]
[1763647790149,0.03406286,90777.0,90775.0,0.00012544]
[1763647790354,0.02374771,90776.0,90775.0,0.00012544]
[1763647790556,0.24407026,90776.0,90775.0,0.00012544]
[1763647790757,0.05128802,90776.0,90775.0,0.00012544]
[1763647790964,0.01990771,90776.0,90775.0,0.00012544]
[1763647791193,0.02374771,90776.0,90775.0,0.03189544]
[1763647791930,0.01990771,90776.0,90775.0,0.00012544]
[1763647792152,0.05128802,90776.0,90775.0,0.00012544]
[1763647792376,0.07431419,90776.0,90775.0,0.00012544]
[1763647792810,0.08430635,90776.0,90750.0,0.56929936]
[1763647792974,0.06394228,90775.0,90750.0,0.56929936]
[1763647793178,0.00999999,90770.0,90750.0,0.56929936]
[1763647793350,0.05744231,90769.0,90750.0,0.56929936]
[1763647793554,0.05292604,90768.0,90750.0,0.56929936]
[1763647793754,0.07860871,90767.0,90750.0,0.56929936]
[1763647793991,0.07860871,90767.0,90754.0,0.01101879]
[1763647793992,0.05292604,90766.0,90754.0,0.01101879]
[1763647794149,0.07581289,90765.0,90749.0,0.00512]
[1763647794355,0.00999999,90760.0,90749.0,0.00512]
[1763647794676,0.02989987,90759.0,90749.0,0.00512]
[1763647794952,0.02989987,90759.0,90723.0,0.01102256]
[1763647794953,0.00999999,90740.0,90723.0,0.01102256]
[1763647795153,0.03369987,90739.0,90722.0,0.03177]
[1763647795375,0.02989987,90738.0,90722.0,0.03177]
[1763647795612,0.0038,90739.0,90718.0,0.025]
[1763647795613,0.00999999,90730.0,90718.0,0.025]
[1763647795817,0.22046157,90720.0,90696.0,0.02178998]
[1763647796032,0.00999999,90730.0,90696.0,0.01543]
[1763647796033,0.00999999,90710.0,90696.0,0.01543]
[1763647796203,0.02989987,90709.0,90696.0,0.01543]
[1763647796420,0.02989987,90708.0,90701.0,0.04898]
[1763647796697,0.02989987,90707.0,90705.0,0.22049501]
[1763647797016,0.02989987,90707.0,90706.0,0.04898]
[1763647797017,0.0038,90707.0,90706.0,0.04898]
[1763647797212,0.0300214,90707.0,90706.0,0.04898]
[1763647798041,0.0300214,90707.0,90706.0,0.26947258]
[1763647798217,0.0300214,90707.0,90706.0,0.04898]
[1763647798443,0.0300214,90707.0,90706.0,0.04926465]
[1763647798604,0.0300214,90707.0,90706.0,0.04898]
[1763647799251,0.01012599,90720.0,90719.0,0.22046098]
[1763647799252,0.000126,90720.0,90719.0,0.22046098]
[1763647799491,0.000126,90720.0,90714.0,0.01102365]
[1763647799492,0.00384,90717.0,90714.0,0.23149678]
[1763647799643,0.00384,90717.0,90716.0,0.22046827]
[1763647800073,0.00384,90717.0,90710.0,0.01102414]
[1763647800291,0.000126,90720.0,90717.0,0.01102329]
[1763647800493,0.001126,90720.0,90719.0,0.22046098]
[1763647800786,0.00384,90719.0,90718.0,0.04898]
[1763647801233,0.00384,90719.0,90710.0,0.56929936]
[1763647801359,0.00384,90719.0,90700.0,0.57784936]
[1763647801360,0.00999999,90710.0,90700.0,0.57784936]
[1763647801769,0.000126,90720.0,90712.0,0.22047799]
[1763647802047,0.000126,90720.0,90710.0,0.56929936]
[1763647802048,0.0038,90719.0,90710.0,0.56929936]
[1763647802216,0.0038,90719.0,90713.0,0.22047556]
[1763647802359,0.0038,90718.0,90717.0,0.23148693]
[1763647802561,0.0038,90718.0,90717.0,0.04848]
[1763647802974,0.0038,90718.0,90717.0,0.26922381]
[1763647803174,0.0038,90718.0,90717.0,0.26894584]
[1763647803778,0.000126,90720.0,90719.0,0.22046098]
[1763647804024,0.00999999,90740.0,90729.0,0.01102183]
[1763647804025,0.0232,90736.0,90729.0,0.01102183]
[1763647804239,0.0232,90736.0,90717.0,0.23148913]
[1763647804240,3.0,90722.0,90665.0,0.04848]
[1763647804425,0.01999998,90700.0,90690.0,0.01062027]
[1763647804805,0.01486547,90699.0,90690.0,0.01062027]
[1763647804999,0.22052805,90692.0,90690.0,0.01062027]
[1763647805203,0.00384,90691.0,90690.0,0.01062027]
[1763647805637,0.01999998,90700.0,90690.0,0.01062027]
[1763647805843,0.00384,90699.0,90691.0,0.02263]
[1763647806041,0.01999998,90700.0,90691.0,0.02263]
[1763647806042,0.22052612,90693.0,90691.0,0.02263]
[1763647806275,0.22052904,90691.0,90690.0,0.01062027]
[1763647806792,0.22436904,90691.0,90690.0,0.01062027]
[1763647807481,0.00999999,90700.0,90690.0,0.05910027]
[1763647807639,0.00384,90699.0,90690.0,0.62839963]
[1763647807840,0.001,90691.0,90690.0,0.05910027]
[1763647808650,0.00384,90691.0,90690.0,0.05910027]
[1763647808968,0.22047793,90713.0,90690.0,0.05910027]
[1763647808969,0.00999999,90720.0,90701.0,0.01102523]
[1763647809287,0.00999999,90720.0,90690.0,0.0650103]
[1763647809288,0.00384,90719.0,90710.0,0.56929936]
[1763647809749,0.00384,90719.0,90690.0,0.01062027]
[1763647809967,0.00384,90719.0,90703.0,0.04848]
[1763647810164,0.00999999,90710.0,90703.0,0.04848]
[1763647810421,0.01999998,90710.0,90703.0,0.04848]
[1763647810566,0.01999998,90700.0,90690.0,0.01062027]
[1763647810748,0.00384,90699.0,90690.0,0.01062027]
[1763647811177,0.22052684,90692.0,90690.0,0.01062027]
[1763647811376,0.02986817,90691.0,90690.0,0.01062027]
[1763647811754,0.03370817,90691.0,90690.0,0.01062027]
[1763647811954,0.03370817,90691.0,90690.0,0.05910027]
[1763647812160,0.03370817,90691.0,90690.0,0.06315173]
[1763647812629,0.02986817,90691.0,90690.0,0.06315173]
[1763647812830,0.03470817,90691.0,90690.0,0.06315173]
[1763647813789,0.03470817,90691.0,90690.0,0.01467173]
[1763647813790,0.03470711,90691.0,90690.0,0.01467173]
[1763647813995,0.03470711,90691.0,90631.0,0.44134887]
[1763647813996,0.01999999,90630.0,90561.0,0.13766512]
[1763647814296,0.01999999,90630.0,90540.0,0.22263]
[1763647814297,0.22079198,90583.0,90550.0,0.77172068]
[1763647814503,0.22079198,90583.0,90569.0,0.02263]
[1763647814504,0.00999999,90580.0,90569.0,0.02263]
[1763647814730,0.00999999,90570.0,90559.0,0.04848]
[1763647814953,0.00384,90583.0,90551.0,0.02263]
[1763647814954,0.00999999,90560.0,90551.0,0.02263]
[1763647815192,0.00999999,90570.0,90560.0,0.04848]
[1763647815401,0.00999999,90580.0,90567.0,0.01104154]
[1763647815605,0.00999999,90580.0,90560.0,0.04848]
[1763647815606,0.00042035,90580.0,90577.0,0.01104033]
[1763647815736,0.00042035,90580.0,90570.0,0.22082236]
[1763647815938,0.00042035,90580.0,90577.0,0.23184589]
[1763647816220,0.01731244,90618.0,90571.0,0.04848]
[1763647816221,0.00999999,90620.0,90600.0,0.01103752]
[1763647816426,0.00999999,90610.0,90600.0,0.000126]
[1763647816630,0.01976155,90609.0,90600.0,0.000126]
[1763647816774,3.0,90601.0,90600.0,0.000126]
[1763647816968,3.40263747,90601.0,90600.0,0.000126]
[1763647817180,3.40263747,90601.0,90540.0,0.03367484]
[1763647817181,0.22077735,90589.0,90540.0,0.02263]
[1763647817383,0.00999999,90560.0,90557.0,0.01104276]
[1763647817624,0.00999999,90570.0,90557.0,0.01104276]
[1763647817625,0.00999999,90570.0,90560.0,0.0110424]
[1763647817826,0.00388,90572.0,90567.0,0.01104154]
[1763647818043,0.01999998,90580.0,90577.0,0.01104033]
[1763647818044,0.00999999,90580.0,90577.0,0.01104033]
[1763647818241,0.04241,90620.0,90577.0,0.01104033]
[1763647818242,0.00999999,90600.0,90589.0,0.22077735]
[1763647818578,0.00999999,90600.0,90593.0,0.01103838]
[1763647818579,0.01971279,90599.0,90593.0,0.01103838]
[1763647818778,0.00012609,90600.0,90599.0,0.22075298]
[1763647818956,0.01012608,90600.0,90594.0,0.04848]
[1763647819158,0.00012609,90600.0,90595.0,0.04848]
[1763647819359,0.00012609,90600.0,90598.0,0.22075513]
[1763647819557,0.00012609,90600.0,90599.0,0.00035006]
[1763647819760,0.00012609,90600.0,90599.0,0.04883006]
[1763647820096,0.00012609,90600.0,90599.0,0.00269586]
[1763647820295,0.00999999,90620.0,90619.0,0.22070426]
[1763647820531,0.02757677,90656.0,90617.0,0.23174268]
[1763647820532,0.00999999,90640.0,90627.0,0.01103423]
[1763647820700,0.00999999,90640.0,90629.0,0.01103399]
[1763647820701,0.02012645,90640.0,90629.0,0.01103399]
[1763647820932,0.02012645,90640.0,90626.0,0.01103436]
[1763647820933,0.00999999,90660.0,90643.0,0.01103229]
[1763647821142,0.22054603,90685.0,90640.0,0.01103265]
[1763647821143,0.00999999,90680.0,90663.0,0.01102985]
[1763647821349,0.00999999,90680.0,90653.0,0.00519]
[1763647821350,0.01999998,90690.0,90676.0,0.01102827]
[1763647821493,0.02840582,90700.0,90653.0,0.00519]
[1763647821494,0.01999998,90680.0,90653.0,0.00519]
[1763647821719,0.01999998,90680.0,90640.0,0.5279006]
[1763647821720,0.01999998,90640.0,90626.0,0.02263]
[1763647821877,0.01999998,90640.0,90600.0,0.5279006]
[1763647821878,0.01999998,90610.0,90602.0,0.02263]
[1763647822075,0.00388,90609.0,90602.0,0.02263]
[1763647822293,0.44120483,90661.0,90609.0,0.23176261]
[1763647822294,0.001,90620.0,90609.0,0.23176261]
[1763647822459,0.001,90620.0,90619.0,0.22070426]
[1763647822662,0.00999999,90640.0,90623.0,0.01103472]
[1763647822663,0.01999998,90640.0,90623.0,0.01103472]
[1763647822922,0.00388,90652.0,90623.0,0.01103472]
[1763647822923,0.01999998,90630.0,90623.0,0.00012647]
[1763647823099,0.00388,90629.0,90623.0,0.00012647]
[1763647823302,0.0197466,90628.0,90623.0,0.04860647]
[1763647823503,0.01999998,90640.0,90628.0,0.01103411]
[1763647823714,0.00388,90638.0,90629.0,0.01103399]
[1763647823939,0.00999999,90640.0,90630.0,0.04848]
[1763647824138,0.00999999,90640.0,90639.0,0.02263]
[1763647824139,0.001,90640.0,90639.0,0.02263]
[1763647824312,0.00999999,90650.0,90647.0,0.0110318]
[1763647824675,0.00999999,90650.0,90639.0,0.03366277]
[1763647824676,0.01999998,90670.0,90657.0,0.01103058]
[1763647824808,0.00999999,90660.0,90640.0,0.5763806]
[1763647825030,0.01999998,90660.0,90648.0,0.22063319]
[1763647825247,0.01999998,90660.0,90641.0,0.04848]
[1763647825248,0.00999999,90660.0,90659.0,0.22060688]
[1763647825446,0.00388,90669.0,90666.0,0.23161735]
[1763647825702,0.01977213,90668.0,90667.0,0.04848]
[1763647825829,0.0001264,90668.0,90667.0,0.04848]
[1763647826254,0.01999998,90680.0,90668.0,0.01102924]
[1763647826255,0.00999999,90680.0,90668.0,0.01102924]
[1763647826473,0.00999999,90680.0,90667.0,0.04848]
[1763647826474,0.00042123,90680.0,90679.0,0.00519]
[1763647826872,0.00042123,90680.0,90679.0,0.05367]
[1763647827652,0.00042123,90680.0,90679.0,0.05207]
[1763647828472,0.00042123,90680.0,90679.0,0.03477486]
[1763647829026,0.00999999,90690.0,90687.0,0.01102693]
[1763647829228,0.00999999,90690.0,90689.0,0.01909]
[1763647829576,0.02477896,90719.0,90689.0,0.01909]
[1763647829577,0.00999999,90710.0,90699.0,0.01102547]
[1763647829777,0.02367344,90709.0,90701.0,0.01102523]
[1763647830022,0.01979344,90708.0,90703.0,0.01102499]
[1763647830216,0.01979344,90707.0,90704.0,0.01102487]
[1763647830442,0.01012633,90710.0,90709.0,0.22048528]
[1763647830443,0.00012634,90710.0,90709.0,0.22048528]
[1763647830743,0.00012634,90710.0,90709.0,0.04465]
[1763647830892,0.00155803,90727.0,90712.0,0.01102389]
[1763647831096,0.00155803,90727.0,90726.0,0.0219]
[1763647831481,0.00155803,90727.0,90713.0,0.04465]
[1763647831482,0.01999998,90720.0,90713.0,0.04465]
[1763647831680,0.01979949,90719.0,90713.0,0.04465]
[1763647831886,0.01979949,90718.0,90713.0,0.04465]
[1763647832142,0.01979949,90717.0,90715.0,0.2204687]
[1763647832287,0.00155803,90727.0,90716.0,0.0407]
[1763647832481,0.01979988,90726.0,90717.0,0.02207]
[1763647832717,0.01979988,90725.0,90723.0,0.22045114]
[1763647832927,0.00155803,90727.0,90724.0,0.01102244]
[1763647833134,0.01980025,90726.0,90725.0,0.0407]
[1763647833351,0.00155803,90727.0,90726.0,0.22044397]
[1763647833594,0.00155803,90727.0,90725.0,0.0407]
[1763647835384,0.00155803,90727.0,90726.0,0.01631339]
[1763647835583,0.22033429,90772.0,90726.0,0.01631339]
[1763647835584,0.00999999,90760.0,90747.0,0.01101964]
[1763647835889,0.00999999,90760.0,90741.0,0.01102037]